[Event "Titled Tuesday Blitz November 07 Late 2023"]
[White "Bortnyk, Olexandr"]
[Black "Carlsen, Magnus"]
[WhiteFideId "14120828"]
[BlackFideId "1503014"]
[WhiteElo "3037"]
[BlackElo "3271"]
[Result "1/2-1/2"]
[Round "5"]
[TimeControl "180+1"]
[Date "2023.11.07"]
[WhiteClock "0:00:08"]
[BlackClock "0:00:10"]
[Board "1"]

1. e4 {[%clk 0:03:00]}  c5 {[%clk 0:02:53]} 2. c3 {[%clk 0:02:58]}  d5 {[%clk 0:02:51]} 3. exd5 {[%clk 0:02:59]}  Qxd5 {[%clk 0:02:51]} 4. d4 {[%clk 0:02:58]}  g6 {[%clk 0:02:51]} 5. Be3 {[%clk 0:02:58]}  Nf6 {[%clk 0:02:36]} 6. Nf3 {[%clk 0:02:48]}  Ng4 {[%clk 0:02:04]} 7. Nbd2 {[%clk 0:02:35]}  Nxe3 {[%clk 0:01:53]} 8. fxe3 {[%clk 0:02:36]}  Bh6 {[%clk 0:01:48]} 9. Bc4 {[%clk 0:02:35]}  Qh5 {[%clk 0:01:42]} 10. Ne5 {[%clk 0:02:08]}  Qxd1+ {[%clk 0:01:40]} 11. Rxd1 {[%clk 0:02:09]}  Rf8 {[%clk 0:01:13]} 12. Ne4 {[%clk 0:02:00]}  f6 {[%clk 0:01:04]} 13. Bb5+ {[%clk 0:01:54]}  Kd8 {[%clk 0:01:04]} 14. Nc4 {[%clk 0:01:17]}  Kc7 {[%clk 0:00:57]} 15. dxc5 {[%clk 0:01:03]}  Be6 {[%clk 0:00:54]} 16. Kf2 {[%clk 0:00:57]}  Nc6 {[%clk 0:00:54]} 17. b4 {[%clk 0:00:51]}  a6 {[%clk 0:00:31]} 18. Bxc6 {[%clk 0:00:50]}  bxc6 {[%clk 0:00:32]} 19. Nb6 {[%clk 0:00:46]}  Rad8 {[%clk 0:00:32]} 20. a4 {[%clk 0:00:40]}  Bb3 {[%clk 0:00:22]} 21. Rd4 {[%clk 0:00:37]}  f5 {[%clk 0:00:22]} 22. Nd2 {[%clk 0:00:36]}  Bf7 {[%clk 0:00:14]} 23. Nf3 {[%clk 0:00:26]}  Bg7 {[%clk 0:00:14]} 24. Rhd1 {[%clk 0:00:25]}  Rxd4 {[%clk 0:00:13]} 25. exd4 {[%clk 0:00:23]}  Rd8 {[%clk 0:00:08]} 26. Re1 {[%clk 0:00:23]}  Bf6 {[%clk 0:00:08]} 27. g3 {[%clk 0:00:21]}  g5 {[%clk 0:00:08]} 28. Ne5 {[%clk 0:00:19]}  Bb3 {[%clk 0:00:08]} 29. Nf3 {[%clk 0:00:14]}  h6 {[%clk 0:00:06]} 30. Nd2 {[%clk 0:00:13]}  Bf7 {[%clk 0:00:06]} 31. Nf3 {[%clk 0:00:13]}  Bb3 {[%clk 0:00:05]} 32. Rb1 {[%clk 0:00:12]}  Bc2 {[%clk 0:00:04]} 33. Rb2 {[%clk 0:00:12]}  Be4 {[%clk 0:00:04]} 34. b5 {[%clk 0:00:10]}  axb5 {[%clk 0:00:02]} 35. axb5 {[%clk 0:00:11]}  Bxf3 {[%clk 0:00:03]} 36. Kxf3 {[%clk 0:00:11]}  e5 {[%clk 0:00:04]} 37. Nc4 {[%clk 0:00:06]}  cxb5 {[%clk 0:00:04]} 38. Rxb5 {[%clk 0:00:01]}  exd4 {[%clk 0:00:05]} 39. cxd4 {[%clk 0:00:02]}  Rxd4 {[%clk 0:00:04]} 40. Nd6 {[%clk 0:00:02]}  Kc6 {[%clk 0:00:03]} 41. Ra5 {[%clk 0:00:03]}  Rd3+ {[%clk 0:00:02]} 42. Ke2 {[%clk 0:00:04]}  Rd5 {[%clk 0:00:03]} 43. Nf7 {[%clk 0:00:01]}  Bd4 {[%clk 0:00:02]} 44. Ra6+ {[%clk 0:00:01]}  Kxc5 {[%clk 0:00:02]} 45. Nxh6 {[%clk 0:00:02]}  Kc4 {[%clk 0:00:03]} 46. Rc6+ {[%clk 0:00:02]}  Bc5 {[%clk 0:00:03]} 47. Rf6 {[%clk 0:00:02]}  Re5+ {[%clk 0:00:03]} 48. Kf1 {[%clk 0:00:02]}  f4 {[%clk 0:00:04]} 49. gxf4 {[%clk 0:00:03]}  gxf4 {[%clk 0:00:05]} 50. Rxf4+ {[%clk 0:00:04]}  Kd5 {[%clk 0:00:06]} 51. Ng4 {[%clk 0:00:04]}  Re6 {[%clk 0:00:06]} 52. h4 {[%clk 0:00:04]}  Bd4 {[%clk 0:00:05]} 53. Kg2 {[%clk 0:00:04]}  Re4 {[%clk 0:00:06]} 54. Kf3 {[%clk 0:00:04]}  Rxf4+ {[%clk 0:00:06]} 55. Kxf4 {[%clk 0:00:05]}  Ke6 {[%clk 0:00:07]} 56. Kg5 {[%clk 0:00:06]}  Kf7 {[%clk 0:00:07]} 57. Nh6+ {[%clk 0:00:05]}  Kf8 {[%clk 0:00:07]} 58. Kg6 {[%clk 0:00:06]}  Ba1 {[%clk 0:00:07]} 59. h5 {[%clk 0:00:06]}  Bb2 {[%clk 0:00:07]} 60. Nf5 {[%clk 0:00:07]}  Bc1 {[%clk 0:00:08]} 61. Ng7 {[%clk 0:00:06]}  Bd2 {[%clk 0:00:08]} 62. Ne6+ {[%clk 0:00:06]}  Kg8 {[%clk 0:00:08]} 63. Nd4 {[%clk 0:00:07]}  Bc1 {[%clk 0:00:08]} 64. Nf3 {[%clk 0:00:07]}  Be3 {[%clk 0:00:08]} 65. Ne5 {[%clk 0:00:07]}  Bc1 {[%clk 0:00:08]} 66. Ng4 {[%clk 0:00:08]}  Bd2 {[%clk 0:00:08]} 67. Nf6+ {[%clk 0:00:09]}  Kh8 {[%clk 0:00:08]} 68. Kf7 {[%clk 0:00:09]}  Bc3 {[%clk 0:00:08]} 69. Ne4 {[%clk 0:00:09]}  Kh7 {[%clk 0:00:08]} 70. Nxc3 {[%clk 0:00:08]}  Kh6 {[%clk 0:00:09]} 71. Ne4 {[%clk 0:00:08]}  Kxh5 {[%clk 0:00:10]} 1/2-1/2


[Site "https://www.chess.com"]

[Event "Titled Tuesday Blitz November 07 Late 2023"]
[White "Nihal Sarin"]
[Black "Ibarra Jerez, Jose Carlos"]
[WhiteFideId "25092340"]
[BlackFideId "2226332"]
[WhiteElo "3108"]
[BlackElo "3014"]
[Result "1-0"]
[Round "5"]
[TimeControl "180+1"]
[Date "2023.11.07"]
[WhiteClock "0:00:10"]
[BlackClock "0:00:00"]
[Board "2"]

1. e4 {[%clk 0:03:00]}  c5 {[%clk 0:02:59]} 2. Nf3 {[%clk 0:02:59]}  Nc6 {[%clk 0:02:57]} 3. Nc3 {[%clk 0:02:51]}  e6 {[%clk 0:02:55]} 4. d4 {[%clk 0:02:46]}  cxd4 {[%clk 0:02:56]} 5. Nxd4 {[%clk 0:02:47]}  Nf6 {[%clk 0:02:56]} 6. Qd3 {[%clk 0:02:42]}  Bb4 {[%clk 0:02:19]} 7. Nxc6 {[%clk 0:02:18]}  bxc6 {[%clk 0:02:14]} 8. e5 {[%clk 0:02:18]}  Nd5 {[%clk 0:02:12]} 9. Bd2 {[%clk 0:02:18]}  Qa5 {[%clk 0:02:05]} 10. Ne4 {[%clk 0:02:10]}  Bxd2+ {[%clk 0:01:27]} 11. Qxd2 {[%clk 0:02:11]}  Nb4 {[%clk 0:01:27]} 12. Nd6+ {[%clk 0:01:36]}  Kf8 {[%clk 0:01:27]} 13. O-O-O {[%clk 0:01:23]}  Nxa2+ {[%clk 0:00:53]} 14. Kb1 {[%clk 0:01:22]}  Nb4 {[%clk 0:00:45]} 15. Bc4 {[%clk 0:01:18]}  Ba6 {[%clk 0:00:18]} 16. Qf4 {[%clk 0:01:09]}  f6 {[%clk 0:00:18]} 17. exf6 {[%clk 0:01:08]}  g5 {[%clk 0:00:18]} 18. Qe4 {[%clk 0:00:57]}  Bxc4 {[%clk 0:00:17]} 19. Qxc4 {[%clk 0:00:56]}  Nd5 {[%clk 0:00:14]} 20. h4 {[%clk 0:00:51]}  Rb8 {[%clk 0:00:14]} 21. Rd3 {[%clk 0:00:18]}  Rb4 {[%clk 0:00:14]} 22. Qa2 {[%clk 0:00:19]}  Ra4 {[%clk 0:00:13]} 23. Ra3 {[%clk 0:00:15]}  Nc3+ {[%clk 0:00:11]} 24. bxc3 {[%clk 0:00:15]}  Rxa3 {[%clk 0:00:12]} 25. Qb2 {[%clk 0:00:16]}  Qb6 {[%clk 0:00:11]} 26. hxg5 {[%clk 0:00:10]}  Ra5 {[%clk 0:00:11]} 27. Qxb6 {[%clk 0:00:10]}  axb6 {[%clk 0:00:12]} 28. g6 {[%clk 0:00:11]}  Rg8 {[%clk 0:00:05]} 29. g7+ {[%clk 0:00:10]}  Rxg7 {[%clk 0:00:04]} 30. fxg7+ {[%clk 0:00:11]}  Kxg7 {[%clk 0:00:04]} 31. Nc4 {[%clk 0:00:12]}  Rc5 {[%clk 0:00:04]} 32. Ne3 {[%clk 0:00:12]}  Rxc3 {[%clk 0:00:04]} 33. Kc1 {[%clk 0:00:12]}  Rc5 {[%clk 0:00:04]} 34. Kd2 {[%clk 0:00:12]}  b5 {[%clk 0:00:04]} 35. Ra1 {[%clk 0:00:13]}  d5 {[%clk 0:00:02]} 36. Ra7+ {[%clk 0:00:13]}  Kf6 {[%clk 0:00:03]} 37. Rxh7 {[%clk 0:00:12]}  d4 {[%clk 0:00:03]} 38. Ng4+ {[%clk 0:00:12]}  Kg5 {[%clk 0:00:04]} 39. f3 {[%clk 0:00:10]}  e5 {[%clk 0:00:02]} 40. Nf2 {[%clk 0:00:10]}  Rd5 {[%clk 0:00:01]} 41. Ne4+ {[%clk 0:00:10]}  Kg6 {[%clk 0:00:02]} 42. Rc7 {[%clk 0:00:09]}  Kf5 {[%clk 0:00:00]} 43. Rxc6 {[%clk 0:00:10]} 1-0


[Site "https://www.chess.com"]

[Event "Titled Tuesday Blitz November 07 Late 2023"]
[White "Hong, Andrew"]
[Black "Duda, Jan-Krzysztof"]
[WhiteFideId "2099438"]
[BlackFideId "1170546"]
[WhiteElo "2985"]
[BlackElo "3089"]
[Result "0-1"]
[Round "5"]
[TimeControl "180+1"]
[Date "2023.11.07"]
[WhiteClock "0:00:03"]
[BlackClock "0:00:23"]
[Board "3"]

1. e4 {[%clk 0:03:00]}  e5 {[%clk 0:02:57]} 2. Nf3 {[%clk 0:03:00]}  Nc6 {[%clk 0:02:58]} 3. Bb5 {[%clk 0:03:00]}  a6 {[%clk 0:02:57]} 4. Ba4 {[%clk 0:03:01]}  Nf6 {[%clk 0:02:57]} 5. O-O {[%clk 0:03:01]}  Be7 {[%clk 0:02:54]} 6. Re1 {[%clk 0:03:01]}  b5 {[%clk 0:02:54]} 7. Bb3 {[%clk 0:03:02]}  O-O {[%clk 0:02:54]} 8. a4 {[%clk 0:03:02]}  Bb7 {[%clk 0:02:47]} 9. d3 {[%clk 0:03:02]}  d6 {[%clk 0:02:43]} 10. Bd2 {[%clk 0:03:02]}  h6 {[%clk 0:02:36]} 11. h3 {[%clk 0:03:02]}  Re8 {[%clk 0:02:34]} 12. Nc3 {[%clk 0:02:58]}  Na5 {[%clk 0:02:30]} 13. Ba2 {[%clk 0:02:58]}  b4 {[%clk 0:02:30]} 14. Ne2 {[%clk 0:02:58]}  c5 {[%clk 0:02:28]} 15. Ng3 {[%clk 0:02:58]}  Bf8 {[%clk 0:02:25]} 16. c3 {[%clk 0:02:56]}  Nc6 {[%clk 0:02:21]} 17. Be3 {[%clk 0:02:53]}  d5 {[%clk 0:02:16]} 18. exd5 {[%clk 0:02:49]}  Nxd5 {[%clk 0:02:17]} 19. Bd2 {[%clk 0:02:49]}  Qd7 {[%clk 0:02:03]} 20. Ne4 {[%clk 0:02:46]}  Kh8 {[%clk 0:01:52]} 21. Nh4 {[%clk 0:02:44]}  Na5 {[%clk 0:01:26]} 22. Qh5 {[%clk 0:02:38]}  b3 {[%clk 0:01:25]} 23. Bb1 {[%clk 0:02:38]}  Rad8 {[%clk 0:01:16]} 24. c4 {[%clk 0:01:46]}  Nf4 {[%clk 0:01:14]} 25. Qf3 {[%clk 0:01:32]}  Nc6 {[%clk 0:01:13]} 26. Qd1 {[%clk 0:00:54]}  Nd4 {[%clk 0:01:13]} 27. Nf3 {[%clk 0:00:52]}  Nxh3+ {[%clk 0:01:10]} 28. gxh3 {[%clk 0:00:50]}  Qxh3 {[%clk 0:01:11]} 29. Nh2 {[%clk 0:00:37]}  Re6 {[%clk 0:01:07]} 30. Qg4 {[%clk 0:00:28]}  Qxg4+ {[%clk 0:00:58]} 31. Nxg4 {[%clk 0:00:28]}  f5 {[%clk 0:00:58]} 32. Nh2 {[%clk 0:00:18]}  fxe4 {[%clk 0:00:58]} 33. dxe4 {[%clk 0:00:19]}  Be7 {[%clk 0:00:57]} 34. Bd3 {[%clk 0:00:15]}  Nc6 {[%clk 0:00:48]} 35. Re3 {[%clk 0:00:14]}  Red6 {[%clk 0:00:48]} 36. Bf1 {[%clk 0:00:07]}  Rxd2 {[%clk 0:00:48]} 37. Rxb3 {[%clk 0:00:08]}  Nb4 {[%clk 0:00:47]} 38. Re1 {[%clk 0:00:05]}  Bh4 {[%clk 0:00:45]} 39. Ng4 {[%clk 0:00:05]}  Rf8 {[%clk 0:00:39]} 40. Re2 {[%clk 0:00:03]}  Rxe2 {[%clk 0:00:34]} 41. Bxe2 {[%clk 0:00:04]}  Bxe4 {[%clk 0:00:33]} 42. f3 {[%clk 0:00:04]}  Bc2 {[%clk 0:00:31]} 43. Ra3 {[%clk 0:00:04]}  e4 {[%clk 0:00:30]} 44. Ne5 {[%clk 0:00:03]}  exf3 {[%clk 0:00:27]} 45. Nxf3 {[%clk 0:00:04]}  Bf6 {[%clk 0:00:27]} 46. Kh2 {[%clk 0:00:03]}  Re8 {[%clk 0:00:26]} 47. Bf1 {[%clk 0:00:03]}  Bxb2 {[%clk 0:00:26]} 48. Nh4 {[%clk 0:00:01]}  Bxa3 {[%clk 0:00:26]} 49. Bg2 {[%clk 0:00:02]}  g5 {[%clk 0:00:23]} 50. Nf3 {[%clk 0:00:02]}  a5 {[%clk 0:00:23]} 51. Kg3 {[%clk 0:00:02]}  Bb2 {[%clk 0:00:23]} 52. Kf2 {[%clk 0:00:02]}  Kg7 {[%clk 0:00:23]} 53. Bh3 {[%clk 0:00:03]}  Kf6 {[%clk 0:00:23]} 54. Bd7 {[%clk 0:00:02]}  Re7 {[%clk 0:00:23]} 55. Bb5 {[%clk 0:00:03]}  h5 {[%clk 0:00:23]} 56. Nh2 {[%clk 0:00:04]}  Bd4+ {[%clk 0:00:23]} 57. Kg3 {[%clk 0:00:03]}  Nd3 {[%clk 0:00:23]} 0-1


[Site "https://www.chess.com"]

[Event "Titled Tuesday Blitz November 07 Late 2023"]
[White "Le, Quang Liem"]
[Black "Makarian, Rudik"]
[WhiteFideId "12401137"]
[BlackFideId "44105681"]
[WhiteElo "3084"]
[BlackElo "2976"]
[Result "0-1"]
[Round "5"]
[TimeControl "180+1"]
[Date "2023.11.07"]
[WhiteClock "0:00:01"]
[BlackClock "0:00:16"]
[Board "4"]

1. Nf3 {[%clk 0:03:00]}  Nf6 {[%clk 0:02:52]} 2. c4 {[%clk 0:03:00]}  e6 {[%clk 0:02:52]} 3. b3 {[%clk 0:02:58]}  d5 {[%clk 0:02:53]} 4. Bb2 {[%clk 0:02:58]}  b6 {[%clk 0:02:51]} 5. e3 {[%clk 0:02:58]}  Bb7 {[%clk 0:02:51]} 6. Nc3 {[%clk 0:02:58]}  Nbd7 {[%clk 0:02:42]} 7. Rc1 {[%clk 0:02:57]}  a6 {[%clk 0:02:42]} 8. cxd5 {[%clk 0:02:57]}  exd5 {[%clk 0:02:43]} 9. Ne2 {[%clk 0:02:57]}  g6 {[%clk 0:02:16]} 10. g3 {[%clk 0:02:56]}  Bg7 {[%clk 0:02:12]} 11. Bg2 {[%clk 0:02:56]}  O-O {[%clk 0:02:13]} 12. O-O {[%clk 0:02:56]}  Re8 {[%clk 0:02:13]} 13. Nf4 {[%clk 0:02:56]}  a5 {[%clk 0:02:08]} 14. Re1 {[%clk 0:02:45]}  Nc5 {[%clk 0:02:04]} 15. Be5 {[%clk 0:02:23]}  Re7 {[%clk 0:01:42]} 16. Qc2 {[%clk 0:02:18]}  Ne8 {[%clk 0:01:23]} 17. Bxg7 {[%clk 0:02:09]}  Nxg7 {[%clk 0:01:24]} 18. Nd4 {[%clk 0:02:08]}  Qd7 {[%clk 0:01:10]} 19. a3 {[%clk 0:02:05]}  Nge6 {[%clk 0:00:56]} 20. Nfxe6 {[%clk 0:01:53]}  Nxe6 {[%clk 0:00:57]} 21. Nc6 {[%clk 0:01:52]}  Bxc6 {[%clk 0:00:50]} 22. Qxc6 {[%clk 0:01:53]}  Qxc6 {[%clk 0:00:50]} 23. Rxc6 {[%clk 0:01:54]}  Rd8 {[%clk 0:00:49]} 24. Rec1 {[%clk 0:01:52]}  d4 {[%clk 0:00:48]} 25. b4 {[%clk 0:01:31]}  axb4 {[%clk 0:00:47]} 26. axb4 {[%clk 0:01:32]}  dxe3 {[%clk 0:00:46]} 27. dxe3 {[%clk 0:01:33]}  Rd2 {[%clk 0:00:46]} 28. h4 {[%clk 0:01:14]}  Rb2 {[%clk 0:00:45]} 29. R6c4 {[%clk 0:00:44]}  c5 {[%clk 0:00:43]} 30. bxc5 {[%clk 0:00:42]}  Nxc5 {[%clk 0:00:43]} 31. Rd4 {[%clk 0:00:39]}  Ra7 {[%clk 0:00:42]} 32. Bd5 {[%clk 0:00:38]}  Kg7 {[%clk 0:00:39]} 33. Kg2 {[%clk 0:00:33]}  Ra3 {[%clk 0:00:33]} 34. Rf4 {[%clk 0:00:30]}  f5 {[%clk 0:00:32]} 35. Kg1 {[%clk 0:00:15]}  Nd3 {[%clk 0:00:17]} 36. Rc7+ {[%clk 0:00:15]}  Kf6 {[%clk 0:00:17]} 37. Rf3 {[%clk 0:00:10]}  Ra1+ {[%clk 0:00:16]} 38. Kh2 {[%clk 0:00:09]}  Nxf2 {[%clk 0:00:15]} 39. g4 {[%clk 0:00:02]}  Ne4+ {[%clk 0:00:16]} 40. Kh3 {[%clk 0:00:01]}  Rh1# {[%clk 0:00:16]} 0-1


[Site "https://www.chess.com"]

[Event "Titled Tuesday Blitz November 07 Late 2023"]
[White "Matlakov, Maxim"]
[Black "Firouzja, Alireza"]
[WhiteFideId "4168003"]
[BlackFideId "12573981"]
[WhiteElo "2967"]
[BlackElo "3069"]
[Result "1/2-1/2"]
[Round "5"]
[TimeControl "180+1"]
[Date "2023.11.07"]
[WhiteClock "0:00:09"]
[BlackClock "0:00:16"]
[Board "6"]

1. d4 {[%clk 0:03:00]}  d6 {[%clk 0:03:00]} 2. e4 {[%clk 0:03:00]}  Nf6 {[%clk 0:03:00]} 3. Nc3 {[%clk 0:02:59]}  e5 {[%clk 0:03:00]} 4. Nf3 {[%clk 0:02:57]}  Nbd7 {[%clk 0:03:00]} 5. Bc4 {[%clk 0:02:57]}  Be7 {[%clk 0:03:01]} 6. a4 {[%clk 0:02:57]}  c6 {[%clk 0:03:01]} 7. O-O {[%clk 0:02:57]}  Qc7 {[%clk 0:03:01]} 8. Re1 {[%clk 0:02:56]}  h6 {[%clk 0:03:01]} 9. a5 {[%clk 0:02:55]}  Nf8 {[%clk 0:03:00]} 10. Nh4 {[%clk 0:02:38]}  exd4 {[%clk 0:02:30]} 11. Qxd4 {[%clk 0:02:37]}  Ne6 {[%clk 0:02:31]} 12. Qd1 {[%clk 0:02:32]}  Ng5 {[%clk 0:02:19]} 13. f4 {[%clk 0:01:45]}  Ngh7 {[%clk 0:02:17]} 14. Nf3 {[%clk 0:01:29]}  O-O {[%clk 0:02:17]} 15. Kh1 {[%clk 0:01:22]}  Ng4 {[%clk 0:02:03]} 16. Rf1 {[%clk 0:01:10]}  Rd8 {[%clk 0:01:55]} 17. Bb3 {[%clk 0:01:07]}  d5 {[%clk 0:01:46]} 18. exd5 {[%clk 0:01:01]}  Bc5 {[%clk 0:01:36]} 19. Ne4 {[%clk 0:00:57]}  cxd5 {[%clk 0:01:36]} 20. Nxc5 {[%clk 0:00:56]}  Qxc5 {[%clk 0:01:36]} 21. Qd4 {[%clk 0:00:56]}  Qc7 {[%clk 0:01:35]} 22. Bd2 {[%clk 0:00:51]}  Nf8 {[%clk 0:01:32]} 23. Bc3 {[%clk 0:00:46]}  Ne6 {[%clk 0:01:32]} 24. Qd2 {[%clk 0:00:46]}  Qxf4 {[%clk 0:01:29]} 25. Qxf4 {[%clk 0:00:39]}  Nxf4 {[%clk 0:01:30]} 26. Rae1 {[%clk 0:00:39]}  Ng6 {[%clk 0:01:18]} 27. h3 {[%clk 0:00:36]}  Nf6 {[%clk 0:01:19]} 28. Bxf6 {[%clk 0:00:34]}  gxf6 {[%clk 0:01:20]} 29. Nd4 {[%clk 0:00:34]}  Kg7 {[%clk 0:01:20]} 30. Rf2 {[%clk 0:00:33]}  Ne5 {[%clk 0:01:13]} 31. Ref1 {[%clk 0:00:31]}  Rd6 {[%clk 0:01:14]} 32. c3 {[%clk 0:00:26]}  Bd7 {[%clk 0:01:12]} 33. Bc2 {[%clk 0:00:26]}  Nc4 {[%clk 0:01:09]} 34. Bf5 {[%clk 0:00:26]}  Nxa5 {[%clk 0:00:48]} 35. Bxd7 {[%clk 0:00:25]}  Rxd7 {[%clk 0:00:49]} 36. Nf5+ {[%clk 0:00:25]}  Kh7 {[%clk 0:00:48]} 37. Ne3 {[%clk 0:00:16]}  Rad8 {[%clk 0:00:26]} 38. Ng4 {[%clk 0:00:15]}  Kg7 {[%clk 0:00:24]} 39. Nxf6 {[%clk 0:00:15]}  Re7 {[%clk 0:00:24]} 40. Nh5+ {[%clk 0:00:15]}  Kf8 {[%clk 0:00:15]} 41. Rf6 {[%clk 0:00:14]}  Ke8 {[%clk 0:00:11]} 42. Rxh6 {[%clk 0:00:13]}  Kd7 {[%clk 0:00:12]} 43. Rh7 {[%clk 0:00:12]}  Rf8 {[%clk 0:00:11]} 44. Nf6+ {[%clk 0:00:12]}  Kc6 {[%clk 0:00:11]} 45. Rh6 {[%clk 0:00:11]}  Re6 {[%clk 0:00:11]} 46. Rh5 {[%clk 0:00:09]}  Nc4 {[%clk 0:00:10]} 47. Nxd5 {[%clk 0:00:08]}  Nxb2 {[%clk 0:00:10]} 48. Nb4+ {[%clk 0:00:09]}  Kc7 {[%clk 0:00:10]} 49. Rhf5 {[%clk 0:00:06]}  f6 {[%clk 0:00:08]} 50. h4 {[%clk 0:00:06]}  Rh8 {[%clk 0:00:06]} 51. h5 {[%clk 0:00:06]}  Kb8 {[%clk 0:00:06]} 52. Nd5 {[%clk 0:00:05]}  a5 {[%clk 0:00:06]} 53. Nxf6 {[%clk 0:00:06]}  a4 {[%clk 0:00:06]} 54. g4 {[%clk 0:00:06]}  a3 {[%clk 0:00:04]} 55. Ra5 {[%clk 0:00:06]}  Nc4 {[%clk 0:00:04]} 56. Ra4 {[%clk 0:00:04]}  Ne3 {[%clk 0:00:04]} 57. Rf2 {[%clk 0:00:04]}  Nd1 {[%clk 0:00:04]} 58. Rf1 {[%clk 0:00:04]}  Nxc3 {[%clk 0:00:04]} 59. Rxa3 {[%clk 0:00:04]}  Nb5 {[%clk 0:00:03]} 60. Rb3 {[%clk 0:00:04]}  Nd4 {[%clk 0:00:04]} 61. Rg3 {[%clk 0:00:04]}  Ne2 {[%clk 0:00:04]} 62. Rg2 {[%clk 0:00:04]}  Re3 {[%clk 0:00:04]} 63. Kh2 {[%clk 0:00:04]}  Nd4 {[%clk 0:00:04]} 64. g5 {[%clk 0:00:04]}  Nf3+ {[%clk 0:00:04]} 65. Rxf3 {[%clk 0:00:04]}  Rxf3 {[%clk 0:00:05]} 66. h6 {[%clk 0:00:04]}  Rxf6 {[%clk 0:00:05]} 67. gxf6 {[%clk 0:00:04]}  Rxh6+ {[%clk 0:00:05]} 68. Kg3 {[%clk 0:00:04]}  Rxf6 {[%clk 0:00:06]} 69. Rb2 {[%clk 0:00:05]}  b6 {[%clk 0:00:06]} 70. Kg4 {[%clk 0:00:05]}  Kb7 {[%clk 0:00:07]} 71. Kg5 {[%clk 0:00:06]}  Rf1 {[%clk 0:00:06]} 72. Kg4 {[%clk 0:00:06]}  Kc6 {[%clk 0:00:06]} 73. Rc2+ {[%clk 0:00:06]}  Kb7 {[%clk 0:00:05]} 74. Rb2 {[%clk 0:00:07]}  Rf8 {[%clk 0:00:03]} 75. Rb1 {[%clk 0:00:06]}  Rc8 {[%clk 0:00:02]} 76. Kf3 {[%clk 0:00:07]}  Ka6 {[%clk 0:00:02]} 77. Ra1+ {[%clk 0:00:07]}  Kb7 {[%clk 0:00:02]} 78. Rb1 {[%clk 0:00:07]}  Re8 {[%clk 0:00:02]} 79. Kf2 {[%clk 0:00:06]}  Re5 {[%clk 0:00:02]} 80. Kf3 {[%clk 0:00:06]}  b5 {[%clk 0:00:02]} 81. Kf4 {[%clk 0:00:07]}  Rc5 {[%clk 0:00:02]} 82. Ke3 {[%clk 0:00:07]}  Kb6 {[%clk 0:00:03]} 83. Kd3 {[%clk 0:00:07]}  Rc4 {[%clk 0:00:03]} 84. Kd2 {[%clk 0:00:03]}  Rc7 {[%clk 0:00:03]} 85. Kd3 {[%clk 0:00:03]}  Rc8 {[%clk 0:00:02]} 86. Rb2 {[%clk 0:00:03]}  Rc4 {[%clk 0:00:02]} 87. Rc2 {[%clk 0:00:04]}  Ra4 {[%clk 0:00:02]} 88. Kc3 {[%clk 0:00:04]}  Rc4+ {[%clk 0:00:02]} 89. Kb3 {[%clk 0:00:04]}  Re4 {[%clk 0:00:02]} 90. Kb2 {[%clk 0:00:04]}  Ka5 {[%clk 0:00:02]} 91. Kb1 {[%clk 0:00:04]}  Re3 {[%clk 0:00:02]} 92. Rc1 {[%clk 0:00:05]}  Kb4 {[%clk 0:00:03]} 93. Rd1 {[%clk 0:00:05]}  Kb3 {[%clk 0:00:03]} 94. Rc1 {[%clk 0:00:06]}  Kb4 {[%clk 0:00:03]} 95. Rd1 {[%clk 0:00:06]}  Rb3+ {[%clk 0:00:04]} 96. Ka1 {[%clk 0:00:06]}  Ka4 {[%clk 0:00:04]} 97. Rc1 {[%clk 0:00:06]}  Rd3 {[%clk 0:00:04]} 98. Re1 {[%clk 0:00:05]}  Ka3 {[%clk 0:00:04]} 99. Rc1 {[%clk 0:00:05]}  b4 {[%clk 0:00:04]} 100. Rf1 {[%clk 0:00:06]}  Ka4 {[%clk 0:00:05]} 101. Re1 {[%clk 0:00:06]}  Ra3+ {[%clk 0:00:04]} 102. Kb1 {[%clk 0:00:06]}  Rb3+ {[%clk 0:00:05]} 103. Ka1 {[%clk 0:00:06]}  Rc3 {[%clk 0:00:05]} 104. Rf1 {[%clk 0:00:06]}  Rc2 {[%clk 0:00:06]} 105. Kb1 {[%clk 0:00:07]}  Rd2 {[%clk 0:00:06]} 106. Re1 {[%clk 0:00:07]}  Kb3 {[%clk 0:00:06]} 107. Re3+ {[%clk 0:00:07]}  Kc4 {[%clk 0:00:06]} 108. Re1 {[%clk 0:00:08]}  Kc3 {[%clk 0:00:05]} 109. Re3+ {[%clk 0:00:08]}  Kc4 {[%clk 0:00:05]} 110. Re4+ {[%clk 0:00:08]}  Kb3 {[%clk 0:00:06]} 111. Re3+ {[%clk 0:00:08]}  Ka4 {[%clk 0:00:07]} 112. Re1 {[%clk 0:00:08]}  Ka3 {[%clk 0:00:07]} 113. Re3+ {[%clk 0:00:07]}  b3 {[%clk 0:00:08]} 114. Re1 {[%clk 0:00:08]}  Ra2 {[%clk 0:00:08]} 115. Rf1 {[%clk 0:00:07]}  Rb2+ {[%clk 0:00:09]} 116. Ka1 {[%clk 0:00:07]}  Rc2 {[%clk 0:00:09]} 117. Kb1 {[%clk 0:00:07]}  Rc3 {[%clk 0:00:10]} 118. Re1 {[%clk 0:00:07]}  Rd3 {[%clk 0:00:10]} 119. Rf1 {[%clk 0:00:07]}  Kb4 {[%clk 0:00:11]} 120. Re1 {[%clk 0:00:08]}  Kc3 {[%clk 0:00:12]} 121. Rc1+ {[%clk 0:00:08]}  Kb4 {[%clk 0:00:13]} 122. Rg1 {[%clk 0:00:08]}  Rd2 {[%clk 0:00:13]} 123. Rf1 {[%clk 0:00:08]}  b2 {[%clk 0:00:13]} 124. Rf4+ {[%clk 0:00:07]}  Kb3 {[%clk 0:00:13]} 125. Rf3+ {[%clk 0:00:07]}  Kc4 {[%clk 0:00:14]} 126. Rf4+ {[%clk 0:00:08]}  Rd4 {[%clk 0:00:15]} 127. Rxd4+ {[%clk 0:00:08]}  Kxd4 {[%clk 0:00:16]} 128. Kxb2 {[%clk 0:00:09]} 1/2-1/2


[Site "https://www.chess.com"]